fUST/lending_fUST_20251023
["ID","MTS","AMOUNT","RATE_DAILY","PERIOD"]
[392144736,1761207216116,-602.6022031,0.00039967,30]
[392144737,1761207216177,-3449.71453875,0.0004,120]
[392144738,1761207216236,-160.0,0.0004,120]
[392144739,1761207216296,-1999.0,0.0004,120]
[392144740,1761207216355,-200.0,0.00040083,120]
[392144741,1761207216412,-308.6750249,0.00040132,30]
[392144742,1761207216472,-231.688881,0.000402,60]
[392144743,1761207216532,-398.2775006,0.00040515,30]
[392144744,1761207216597,-1999.0,0.00040547,120]
[392144745,1761207216658,-333.3897705,0.00040788,30]
[392144746,1761207216717,-298.3054188,0.00040788,30]
[392144747,1761207216775,-190.2776334,0.00040788,30]
[392144748,1761207216837,-153.0,0.00040788,30]
[392144749,1761207216897,-190.2776334,0.00040788,30]
[392144750,1761207216957,-153.0,0.00040788,30]
[392144751,1761207217018,-153.0,0.00040788,30]
[392144752,1761207217082,-304.8997414,0.00040804,30]
[392144753,1761207217140,-500.0,0.00040837,30]
[392144754,1761207217200,-503.89992007,0.00040979,30]
[392144755,1761207217260,-500.0,0.00041095,120]
[392144756,1761207217322,-500.0,0.00041095,120]
[392144757,1761207217383,-1999.0,0.00041095,120]
[392144758,1761207217443,-947.58,0.00041095,120]
[392144759,1761207217503,-500.0,0.00041095,120]
[392144760,1761207217564,-500.0,0.00041095,120]
[392144761,1761207217624,-50000.0,0.00041096,120]
[392144762,1761207217685,-161.2,0.000411,120]
[392144763,1761207217744,-500.0,0.00041369,120]
[392144764,1761207217807,-500.0,0.00041369,120]
[392144765,1761207217864,-947.58,0.00041369,120]
[392144766,1761207217921,-500.0,0.00041369,120]
[392144767,1761207217980,-500.0,0.00041369,120]
[392144768,1761207218040,-192.799843,0.00041444,120]
[392144769,1761207218098,-192.799843,0.00041444,120]
[392144770,1761207218156,-192.799843,0.00041444,120]
[392144771,1761207218215,-192.799852,0.00041444,120]
[392144772,1761207218281,-151.0,0.00041444,120]
[392144773,1761207218346,-151.0,0.00041444,120]
[392144774,1761207218408,-151.0,0.00041444,120]
[392144775,1761207218471,-151.0,0.00041444,120]
[392144776,1761207218531,-151.0,0.00041444,120]
[392144777,1761207218589,-151.0,0.00041444,120]
[392144778,1761207218649,-230.555605,0.00041444,120]
[392144779,1761207218708,-230.555605,0.00041444,120]
[392144780,1761207218767,-230.555605,0.00041444,120]
[392144781,1761207218833,-230.555602,0.00041444,120]
[392144782,1761207218896,-198.084585,0.00041444,120]
[392144783,1761207218956,-198.084585,0.00041444,120]
[392144784,1761207219019,-198.084585,0.00041444,120]
[392144785,1761207219082,-198.084591,0.00041444,120]
[392144786,1761207219145,-151.0,0.00041444,120]
[392144787,1761207219208,-151.0,0.00041444,120]
[392144788,1761207219267,-151.0,0.00041444,120]
[392144789,1761207219329,-151.0,0.00041444,120]
[392144790,1761207219389,-151.0,0.00041444,120]
[392144791,1761207219451,-151.0,0.00041444,120]
[392144792,1761207219516,-236.757846,0.00041444,120]
[392144793,1761207219709,-151.0,0.00041444,120]
[392144794,1761207219776,-151.0,0.00041444,120]
[392144795,1761207219836,-151.0,0.00041444,120]
[392144796,1761207219895,-151.0,0.00041444,120]
[392144797,1761207219956,-151.0,0.00041444,120]
[392144798,1761207220014,-785.4356266,0.00041489,30]
[392144799,1761207220072,-500.0,0.00041643,120]
[392144800,1761207220139,-500.0,0.00041643,120]
[392144801,1761207220205,-1999.0,0.00041643,120]
[392144802,1761207220265,-947.58,0.00041643,120]
[392144803,1761207220323,-639.19,0.00041643,120]
[392144804,1761207220387,-500.0,0.00041643,120]
[392144805,1761207220446,-500.0,0.00041644,120]
[392144806,1761207220507,-820.78944526,0.00041899,120]
[392144807,1761207220565,-500.0,0.00041917,120]
[392144808,1761207220629,-500.0,0.00041917,120]
[392144809,1761207220685,-947.58,0.00041917,120]
[392144810,1761207220745,-500.0,0.00041917,120]
[392144811,1761207220804,-200.0,0.00041985,120]
[392144812,1761207220865,-500.0,0.00042191,120]
[392144813,1761207220930,-500.0,0.00042191,120]
[392144814,1761207220993,-1999.0,0.00042191,120]
[392144815,1761207221055,-947.58,0.00042191,120]
[392144816,1761207221115,-500.0,0.00042191,120]
[392144817,1761207221171,-500.0,0.00042192,120]
[392144818,1761207221228,-500.0,0.00042465,120]
[392144819,1761207221289,-500.0,0.00042465,120]
[392144820,1761207221348,-947.58,0.00042465,120]
[392144821,1761207221408,-500.0,0.00042465,120]
[392144822,1761207221467,-231.688881,0.00042549,60]
[392144823,1761207221524,-500.0,0.00042656,60]
[392144824,1761207221583,-515.44732701,0.000427,120]
[392144825,1761207221643,-907.0,0.000427,60]
[392144826,1761207221701,-500.0,0.00042739,120]
[392144827,1761207221760,-500.0,0.00042739,120]
[392144828,1761207221816,-1999.0,0.00042739,120]
[392144829,1761207221874,-947.58,0.00042739,120]
[392144830,1761207221934,-500.0,0.00042739,120]
[392144831,1761207221994,-500.0,0.0004274,120]
[392144832,1761207222055,-69992.04108069,0.000428,120]
[392144833,1761207222115,-60033.49500731,0.000429,120]
[392144834,1761207222170,-500.0,0.00043013,120]
[392144835,1761207222224,-500.0,0.00043013,120]
[392144836,1761207222279,-947.58,0.00043013,120]
[392144837,1761207222337,-500.0,0.00043013,120]
[392144838,1761207222398,-1000.0,0.00043184,90]
[392144839,1761207222455,-791.0,0.00043184,90]
[392144840,1761207222512,-200.0,0.00043212,120]
[392144841,1761207222569,-153.0,0.00043275,30]
[392144842,1761207222627,-153.0,0.00043275,30]
[392144843,1761207222683,-153.0,0.00043275,30]
[392144844,1761207222741,-153.0,0.00043277,30]
[392144845,1761207222806,-153.0,0.00043285,30]
[392144846,1761207222865,-153.0,0.00043285,30]
[392144847,1761207222923,-153.0,0.00043285,30]
[392144848,1761207222982,-153.0,0.00043286,30]
[392144849,1761207223042,-500.0,0.00043287,120]
[392144850,1761207223101,-500.0,0.00043287,120]
[392144851,1761207223161,-1999.0,0.00043287,120]
[392144852,1761207223217,-947.58,0.00043287,120]
[392144853,1761207223275,-500.0,0.00043287,120]
[392144854,1761207223336,-500.0,0.00043288,120]
[392144855,1761207223397,-153.0,0.00043294,30]
[392144856,1761207223460,-153.0,0.00043294,30]
[392144857,1761207223523,-153.0,0.00043294,30]
[392144858,1761207223590,-153.0,0.00043296,30]
[392144859,1761207223653,-500.0,0.000433,60]
[392144860,1761207223713,-500.0,0.000433,30]
[392144861,1761207223773,-500.0,0.000433,60]
[392144862,1761207223832,-153.0,0.00043303,30]
[392144863,1761207223892,-153.0,0.00043303,30]
[392144864,1761207223951,-153.0,0.00043304,30]
[392144865,1761207224010,-107719.10839732,0.00043444,30]
[392144866,1761207224780,160.30906976,0.00035575,120]
[392144867,1761207236365,-500.0,0.00032877,30]
[392144868,1761207236417,-500.0,0.00033425,30]
[392144869,1761207236467,-500.0,0.00033973,30]
[392144870,1761207236517,-500.0,0.00034521,30]
[392144871,1761207236573,-500.0,0.00035068,30]
[392144872,1761207236627,-500.0,0.00035616,30]
[392144873,1761207236683,-500.0,0.00036164,30]
[392144874,1761207236739,-500.0,0.00036712,30]
[392144875,1761207236795,-500.0,0.0003726,30]
[392144876,1761207236854,-159.390316,0.0003785,60]
[392144877,1761207236913,-159.390316,0.000402,60]
[392144878,1761207236965,-750.0,0.00041095,120]
[392144879,1761207237015,-750.0,0.00041369,120]
[392144880,1761207237064,-750.0,0.00041643,120]
[392144881,1761207237114,-750.0,0.00041917,120]
[392144882,1761207237165,-750.0,0.00042191,120]
[392144883,1761207237215,-750.0,0.00042465,120]
[392144884,1761207237264,-159.390316,0.00042549,60]
[392144885,1761207237313,-750.0,0.00042739,120]
[392144886,1761207237364,-160.47,0.00042819,30]
[392144887,1761207237413,-750.0,0.00043013,120]
[392144888,1761207237460,-750.0,0.00043287,120]
[392144889,1761207237510,-588111.359052,0.00043444,30]
[392144890,1761207240263,-417774.22745068,0.00043444,30]
[392144891,1761207240323,-151.0,0.00043444,120]
[392144892,1761207240380,-151.0,0.00043444,120]
[392144893,1761207240433,-151.0,0.00043444,120]
[392144894,1761207240487,-250.954569,0.00043444,120]
[392144895,1761207240545,-151.0,0.00043444,120]
[392144896,1761207240604,-151.0,0.00043444,120]
[392144897,1761207240666,-151.0,0.00043444,120]
[392144898,1761207240723,-151.0,0.00043444,120]
[392144899,1761207240782,-334.16784,0.00043444,120]
[392144900,1761207240839,-334.16784,0.00043444,120]
[392144901,1761207240894,-291.450257,0.00043444,120]
[392144902,1761207240950,-334.16784,0.00043444,120]
[392144903,1761207241006,-151.0,0.00043444,120]
[392144904,1761207241063,-334.16784,0.00043444,120]
[392144905,1761207241116,-151.0,0.00043444,120]
[392144906,1761207241172,-151.0,0.00043444,120]
[392144907,1761207241231,-151.0,0.00043444,120]
[392144908,1761207241285,-151.0,0.00043444,120]
[392144909,1761207241340,-151.0,0.00043444,120]
[392144910,1761207241392,-151.0,0.00043444,120]
[392144911,1761207241441,-151.0,0.00043444,120]
[392144912,1761207241490,-355.823397,0.00043444,120]
[392144913,1761207241542,-151.0,0.00043444,120]
[392144914,1761207241594,-355.823397,0.00043444,120]
[392144915,1761207241647,-355.823397,0.00043444,120]
[392144916,1761207241698,-151.0,0.00043444,120]
[392144917,1761207241749,-355.823397,0.00043444,120]
[392144918,1761207241800,-151.0,0.00043444,120]
[392144919,1761207241852,-200.522282,0.00043444,120]
[392144920,1761207241904,-200.522282,0.00043444,120]
[392144921,1761207241960,-200.522282,0.00043444,120]
[392144922,1761207242016,-200.522282,0.00043444,120]
[392144923,1761207242074,-231.688881,0.00043444,30]
[392144924,1761207242126,-151.0,0.00043444,120]
[392144925,1761207242180,-151.0,0.00043444,120]
[392144926,1761207242231,-151.0,0.00043444,120]
[392144927,1761207242284,-151.0,0.00043444,120]
[392144928,1761207242341,-194.378188,0.00043444,120]
[392144929,1761207242399,-151.0,0.00043444,120]
[392144930,1761207242454,-151.0,0.00043444,120]
[392144931,1761207242508,-194.378188,0.00043444,120]
[392144932,1761207242562,-151.0,0.00043444,120]
[392144933,1761207242614,-194.378188,0.00043444,120]
[392144934,1761207242676,-5000.0,0.00043444,120]
[392144935,1761207242736,-151.0,0.00043444,120]
[392144936,1761207242792,-194.378188,0.00043444,120]
[392144937,1761207242846,-5000.0,0.00043444,120]
[392144938,1761207242900,-190.222173,0.00043444,120]
[392144939,1761207242956,-5000.0,0.00043444,120]
[392144940,1761207243013,-5000.0,0.00043444,120]
[392144941,1761207243067,-151.0,0.00043444,120]
[392144942,1761207243247,-151.0,0.00043444,120]
[392144943,1761207243307,-203.370057,0.00043444,120]
[392144944,1761207243363,-203.370057,0.00043444,120]
[392144945,1761207243421,-203.370057,0.00043444,120]
[392144946,1761207243480,-151.0,0.0004356,120]
[392144947,1761207243535,-151.0,0.0004356,120]
[392144948,1761207243592,-151.0,0.0004356,120]
[392144949,1761207243646,-151.0,0.0004356,120]
[392144950,1761207243699,-151.0,0.0004356,120]
[392144951,1761207243753,-151.0,0.0004356,120]
[392144952,1761207243808,-151.0,0.0004356,120]
[392144953,1761207243863,-334.16784,0.0004356,120]
[392144954,1761207243917,-334.16784,0.0004356,120]
[392144955,1761207243974,-334.16784,0.0004356,120]
[392144956,1761207244035,-151.0,0.0004356,120]
[392144957,1761207244090,-334.16784,0.0004356,120]
[392144958,1761207244144,-151.0,0.0004356,120]
[392144959,1761207244199,-151.0,0.0004356,120]
[392144960,1761207244251,-151.0,0.0004356,120]
[392144961,1761207244305,-237.14262,0.0004356,120]
[392144962,1761207244359,-151.0,0.0004356,120]
[392144963,1761207244414,-151.0,0.0004356,120]
[392144964,1761207244469,-151.0,0.0004356,120]
[392144965,1761207244524,-355.823397,0.0004356,120]
[392144966,1761207244576,-163.242885,0.0004356,120]
[392144967,1761207244629,-355.823397,0.0004356,120]
[392144968,1761207244678,-355.823397,0.0004356,120]
[392144969,1761207244728,-151.0,0.0004356,120]
[392144970,1761207244775,-355.823397,0.0004356,120]
[392144971,1761207244827,-151.0,0.0004356,120]
[392144972,1761207244876,-200.522282,0.0004356,120]
[392144973,1761207244925,-200.522282,0.0004356,120]
[392144974,1761207244974,-200.522282,0.0004356,120]
[392144975,1761207245027,-200.522282,0.0004356,120]
[392144976,1761207245079,-151.0,0.0004356,120]
[392144977,1761207245129,-151.0,0.0004356,120]
[392144978,1761207245180,-151.0,0.0004356,120]
[392144979,1761207245231,-151.0,0.0004356,120]
[392144980,1761207245284,-500.0,0.00043561,120]
[392144981,1761207245336,-500.0,0.00043561,120]
[392144982,1761207245390,-947.58,0.00043561,120]
[392144983,1761207245441,-500.0,0.00043561,120]
[392144984,1761207245492,-750.0,0.00043561,120]
[392144985,1761207245544,-231.688881,0.00043658,30]
[392144986,1761207245598,-159.390316,0.00043658,30]
[392144987,1761207245646,-1565.39,0.000437,30]
[392144988,1761207245699,-500.0,0.00043752,60]
[392144989,1761207245750,-1000.0,0.000438,90]
[392144990,1761207245801,-500.0,0.00043835,120]
[392144991,1761207245853,-1343.44403536,0.00043835,120]
[392144992,1761207245904,-947.58,0.00043835,120]
[392144993,1761207245962,-500.0,0.00043835,120]
[392144994,1761207246015,-750.0,0.00043835,120]
[392144995,1761207246071,-231.688881,0.00043872,30]
[392144996,1761207246121,-159.390316,0.00043872,30]
[392144997,1761207246173,-877.17955982,0.00043899,120]
[392144998,1761207246222,-151.0,0.000439,120]
[392144999,1761207246272,-151.0,0.000439,120]
[392145000,1761207246323,-151.0,0.000439,120]
[392145001,1761207246374,-151.0,0.000439,120]
[392145002,1761207246423,-151.0,0.000439,120]
[392145003,1761207246473,-151.0,0.000439,120]
[392145004,1761207246526,-334.16784,0.000439,120]
[392145005,1761207246579,-151.0,0.000439,120]
[392145006,1761207246634,-334.16784,0.000439,120]
[392145007,1761207246687,-334.16784,0.000439,120]
[392145008,1761207246740,-151.0,0.000439,120]
[392145009,1761207246793,-334.16784,0.000439,120]
[392145010,1761207246846,-151.0,0.000439,120]
[392145011,1761207246898,-151.0,0.000439,120]
[392145012,1761207246951,-151.0,0.000439,120]
[392145013,1761207247004,-151.0,0.000439,120]
[392145014,1761207247056,-151.0,0.000439,120]
[392145015,1761207247110,-151.0,0.000439,120]
[392145016,1761207247160,-355.823397,0.000439,120]
[392145017,1761207247210,-355.823397,0.000439,120]
[392145018,1761207247257,-355.823397,0.000439,120]
[392145019,1761207247311,-151.0,0.000439,120]
[392145020,1761207247367,-355.823397,0.000439,120]
[392145021,1761207247425,-151.0,0.000439,120]
[392145022,1761207247480,-200.522282,0.000439,120]
[392145023,1761207247534,-200.522282,0.000439,120]
[392145024,1761207247592,-200.522282,0.000439,120]
[392145025,1761207247649,-200.522282,0.000439,120]
[392145026,1761207247701,-151.0,0.000439,120]
[392145027,1761207247765,-151.0,0.000439,120]
[392145028,1761207247821,-151.0,0.000439,120]
[392145029,1761207247872,-159.11845,0.000439,120]
[392145030,1761207247925,-194.378188,0.000439,120]
[392145031,1761207247977,-151.0,0.000439,120]
[392145032,1761207248036,-151.0,0.000439,120]
[392145033,1761207248092,-194.378188,0.000439,120]
[392145034,1761207248146,-151.0,0.000439,120]
[392145035,1761207248205,-194.378188,0.000439,120]
[392145036,1761207248260,-5000.0,0.000439,120]
[392145037,1761207248321,-151.0,0.000439,120]
[392145038,1761207248480,-194.378188,0.000439,120]
[392145039,1761207248544,-5000.0,0.000439,120]
[392145040,1761207248599,-5000.0,0.000439,120]
[392145041,1761207248652,-5000.0,0.000439,120]
[392145042,1761207248708,-151.0,0.000439,120]
[392145043,1761207248762,-151.0,0.000439,120]
[392145044,1761207248819,-203.370057,0.000439,120]
[392145045,1761207248873,-203.370057,0.000439,120]
[392145046,1761207248929,-203.370057,0.000439,120]
[392145047,1761207248986,-231.688881,0.00044086,30]
[392145048,1761207249046,-159.390316,0.00044086,30]
[392145049,1761207249105,-500.0,0.00044109,120]
[392145050,1761207249159,-947.58,0.00044109,120]
[392145051,1761207249218,-500.0,0.00044109,120]
[392145052,1761207249282,-750.0,0.00044109,120]
[392145053,1761207249354,-10290.733965,0.000442,120]
[392145054,1761207249424,-51378.98604908,0.000443,30]
[392145055,1761207249494,-2000.0,0.000443,36]
[392145056,1761207249560,-161.586401,0.000443,30]
[392145057,1761207249621,-231.688881,0.000443,30]
[392145058,1761207249680,-159.390316,0.000443,30]
[392145059,1761207249749,-408.58,0.00044383,120]
[392145060,1761207249815,-947.58,0.00044383,120]
[392145061,1761207249871,-349.92902721,0.00044383,120]
[392145062,1761207249927,-750.0,0.00044383,120]
[392145063,1761207249981,-28039.0,0.000444,30]
[392145064,1761207250044,-6448.07881485,0.00044464,93]
[392145065,1761207259610,-203.370057,0.00043444,120]
[392145066,1761207259665,-151.0,0.00043444,120]
[392145067,1761207259718,-203.370057,0.000439,120]
[392145068,1761207259775,-151.0,0.000439,120]
[392145069,1761207259825,-151.0,0.000439,120]
[392145070,1761207259884,-500.0,0.00044464,30]
[392145071,1761207259937,-1107.16176318,0.00044464,93]
[392145072,1761207259996,-947.61440622,0.00044657,120]
[392145073,1761207260051,-750.13472767,0.00044657,120]
[392145074,1761207260110,-55222.09,0.000447,30]
[392145075,1761207260168,-40000.0,0.000447,120]
[392145076,1761207260223,-500.0,0.00044848,60]
[392145077,1761207260285,-231.688881,0.00044899,60]
[392145078,1761207260342,-159.390316,0.00044899,60]
[392145079,1761207260397,-9461.32,0.00045,120]
[392145080,1761207260447,-1000.0,0.00045,120]
[392145081,1761207260499,-150.0,0.00045,120]
[392145082,1761207260557,-445.0831992,0.00045,120]
[392145083,1761207260608,-200034.6687557,0.00045,120]
[392145084,1761207260659,-25660.87600247,0.00045,120]
[392145085,1761207260708,-2009.11329229,0.00045,60]
[392145086,1761207260758,-1117.51410262,0.00045,30]
[392145087,1761207260805,-5000.0,0.000452,120]
[392145088,1761207260852,-196.970591,0.00045205,120]
[392145089,1761207260899,-1110.0,0.000453,38]
[392145090,1761207260949,-253536.63384865,0.00045444,30]
[392145091,1761207269226,-151.0,0.000439,120]
[392145092,1761207269386,-151.0,0.000439,120]
[392145093,1761207269451,-151.0,0.000439,120]
[392145094,1761207269517,-151.0,0.000439,120]
[392145095,1761207269570,-151.0,0.000439,120]
[392145096,1761207269624,-500.0,0.00044383,120]
[392145097,1761207269674,-598745.0,0.00045444,30]
[392145098,1761207275122,-151.0,0.000439,120]
[392145099,1761207275180,-151.0,0.000439,120]
[392145100,1761207275241,-599698.0,0.00045444,30]
[392145101,1761207282838,-167.9908634,0.000397,120]
[392145102,1761207282892,-342.9767399,0.000397,120]
[392145103,1761207282949,-1040.4082057,0.000397,120]
[392145104,1761207283012,-187.10934598,0.000409,120]
[392145105,1761207283069,-417.15472785,0.00042,120]
[392145106,1761207283131,-151.0,0.000439,120]
[392145107,1761207283186,-1197693.36011717,0.00045444,30]
[392145108,1761207286799,-151.0,0.000439,120]
[392145109,1761207286852,-1199849.0,0.00045444,30]
[392145110,1761207290698,-179070.12048283,0.00045444,30]
[392145111,1761207290757,-151.0,0.00045444,120]
[392145112,1761207290817,-151.0,0.00045444,120]
[392145113,1761207290875,-151.0,0.00045444,120]
[392145114,1761207290931,-151.0,0.00045444,120]
[392145115,1761207290985,-151.0,0.00045444,120]
[392145116,1761207291039,-151.0,0.00045444,120]
[392145117,1761207291091,-151.0,0.00045444,120]
[392145118,1761207291150,-151.0,0.00045444,120]
[392145119,1761207291212,-201.18102,0.00045444,120]
[392145120,1761207291275,-151.0,0.00045444,120]
[392145121,1761207291337,-151.0,0.00045444,120]
[392145122,1761207291394,-151.0,0.00045444,120]
[392145123,1761207291462,-334.16784,0.00045444,120]
[392145124,1761207291515,-334.16784,0.00045444,120]
[392145125,1761207291570,-151.0,0.00045444,120]
[392145126,1761207291623,-151.0,0.00045444,120]
[392145127,1761207291681,-334.16784,0.00045444,120]
[392145128,1761207291735,-334.16784,0.00045444,120]
[392145129,1761207291786,-334.16784,0.00045444,120]
[392145130,1761207291844,-334.16784,0.00045444,120]
[392145131,1761207291902,-334.16784,0.00045444,120]
[392145132,1761207291968,-334.167837,0.00045444,120]
[392145133,1761207292025,-151.0,0.00045444,120]
[392145134,1761207292081,-151.0,0.00045444,120]
[392145135,1761207292135,-151.0,0.00045444,120]
[392145136,1761207292193,-151.0,0.00045444,120]
[392145137,1761207292251,-151.0,0.00045444,120]
[392145138,1761207292307,-151.0,0.00045444,120]
[392145139,1761207292363,-151.0,0.00045444,120]
[392145140,1761207292421,-151.0,0.00045444,120]
[392145141,1761207292476,-279.795684,0.00045444,120]
[392145142,1761207292538,-151.0,0.00045444,120]
[392145143,1761207292597,-151.0,0.00045444,120]
[392145144,1761207292754,-355.823397,0.00045444,120]
[392145145,1761207292818,-355.823397,0.00045444,120]
[392145146,1761207292883,-355.823397,0.00045444,120]
[392145147,1761207292939,-355.823397,0.00045444,120]
[392145148,1761207292992,-355.823397,0.00045444,120]
[392145149,1761207293051,-355.823397,0.00045444,120]
[392145150,1761207293117,-151.0,0.00045444,120]
[392145151,1761207293173,-355.823397,0.00045444,120]
[392145152,1761207293232,-355.82339,0.00045444,120]
[392145153,1761207293292,-151.0,0.00045444,120]
[392145154,1761207293352,-200.522282,0.00045444,120]
[392145155,1761207293411,-200.522282,0.00045444,120]
[392145156,1761207293465,-200.522282,0.00045444,120]
[392145157,1761207293523,-200.522282,0.00045444,120]
[392145158,1761207293579,-200.522282,0.00045444,120]
[392145159,1761207293637,-200.522282,0.00045444,120]
[392145160,1761207293697,-200.522282,0.00045444,120]
[392145161,1761207293753,-200.522286,0.00045444,120]
[392145162,1761207293811,-151.0,0.00045444,120]
[392145163,1761207293871,-151.0,0.00045444,120]
[392145164,1761207293930,-151.0,0.00045444,120]
[392145165,1761207293988,-151.0,0.00045444,120]
[392145166,1761207294052,-151.0,0.00045444,120]
[392145167,1761207294111,-151.0,0.00045444,120]
[392145168,1761207294172,-194.378188,0.00045444,120]
[392145169,1761207294230,-151.0,0.00045444,120]
[392145170,1761207294287,-194.378188,0.00045444,120]
[392145171,1761207294342,-151.0,0.00045444,120]
[392145172,1761207294403,-151.0,0.00045444,120]
[392145173,1761207294476,-151.0,0.00045444,120]
[392145174,1761207294541,-194.378188,0.00045444,120]
[392145175,1761207294613,-194.378188,0.00045444,120]
[392145176,1761207294683,-151.0,0.00045444,120]
[392145177,1761207294744,-151.0,0.00045444,120]
[392145178,1761207294811,-194.378188,0.00045444,120]
[392145179,1761207294884,-194.378188,0.00045444,120]
[392145180,1761207294948,-5000.0,0.00045444,120]
[392145181,1761207295013,-151.0,0.00045444,120]
[392145182,1761207295082,-5000.0,0.00045444,120]
[392145183,1761207295139,-151.0,0.00045444,120]
[392145184,1761207295202,-194.378188,0.00045444,120]
[392145185,1761207295263,-194.378188,0.00045444,120]
[392145186,1761207295334,-5000.0,0.00045444,120]
[392145187,1761207295403,-5000.0,0.00045444,120]
[392145188,1761207295473,-5000.0,0.00045444,120]
[392145189,1761207295539,-5000.0,0.00045444,120]
[392145190,1761207295608,-5000.0,0.00045444,120]
[392145191,1761207295677,-5000.0,0.00045444,120]
[392145192,1761207295741,-156.301719,0.00045444,120]
[392145193,1761207295804,-151.0,0.00045444,120]
[392145194,1761207295867,-151.0,0.00045444,120]
[392145195,1761207295933,-203.370057,0.00045444,120]
[392145196,1761207295999,-203.370057,0.00045444,120]
[392145197,1761207296066,-203.370057,0.00045444,120]
[392145198,1761207296127,-203.370057,0.00045444,120]
[392145199,1761207296187,-203.370057,0.00045444,120]
[392145200,1761207296249,-203.370057,0.00045444,120]
[392145201,1761207296307,-203.370057,0.00045444,120]
[392145202,1761207296369,-203.370057,0.00045444,120]
[392145203,1761207296432,-151.0,0.00045444,120]
[392145204,1761207296489,-151.0,0.00045444,120]
[392145205,1761207296544,-151.0,0.00045444,120]
[392145206,1761207296600,-151.0,0.00045444,120]
[392145207,1761207296656,-151.0,0.00045444,120]
[392145208,1761207296715,-248.000652,0.00045444,120]
[392145209,1761207296773,-151.0,0.00045444,120]
[392145210,1761207296831,-197.848228,0.00045444,120]
[392145211,1761207296888,-151.0,0.00045444,120]
[392145212,1761207296944,-151.0,0.00045444,120]
[392145213,1761207297000,-151.0,0.00045444,120]
[392145214,1761207297064,-300.596276,0.00045444,120]
[392145215,1761207297120,-151.0,0.00045444,120]
[392145216,1761207297176,-151.0,0.00045444,120]
[392145217,1761207297232,-151.0,0.00045444,120]
[392145218,1761207297285,-151.0,0.00045444,120]
[392145219,1761207297341,-10000.0,0.000455,45]
[392145220,1761207297398,-933.56967438,0.00045898,120]
[392145221,1761207297453,-500.0,0.00045944,60]
[392145222,1761207297506,-1000.0,0.00046,120]
[392145223,1761207297558,-7311.00124083,0.00046,120]
[392145224,1761207297612,-150.0,0.00046,120]
[392145225,1761207297667,-5000.0,0.00046,120]
[392145226,1761207297723,-1114.0,0.00046,30]
[392145227,1761207297778,-200.0,0.00046053,120]
[392145228,1761207297832,-5000.0,0.000462,120]
[392145229,1761207297886,-1409.55498766,0.00046466,120]
[392145230,1761207297940,-10000.0,0.000465,45]
[392145231,1761207297995,-30096.0,0.000466,120]
[392145232,1761207298156,-200.0,0.00046778,120]
[392145233,1761207298211,-4493.49464129,0.000469,120]
[392145234,1761207298270,-1340.33368872,0.000469,120]
[392145235,1761207298325,-1000.0,0.00047,120]